{"text_format":"1","workbook":"xlsx","n_sheets":2,"sheets":["2-1","2-2"],"not_rendered":{"charts":0,"images":1,"macros":1,"external_links":0,"defined_names":0,"comments":0,"pivot_tables":0},"unopened":[],"bounds":{"document_bytes":16777216,"sheet_cells":100000,"rows_first":2000,"rows_last":500,"rows_between":2000,"halvings":0,"cell_chars":16384,"cell_head_chars":4096},"cells_cut":0,"cells_raw":0,"read":"whole","date_system":"1900"}

{"sheet":"2-1","index":0,"n_rows":148,"n_cols":42,"rows_kept":148,"cut":false,"hidden":false,"merged":[[2,17,2,24],[2,26,3,26],[4,17,4,24],[6,17,6,24],[10,3,10,4],[10,6,10,7],[10,10,10,19],[14,35,15,35],[17,4,17,11],[17,13,18,16],[17,18,18,21],[17,23,18,26],[17,29,18,33],[17,35,18,35],[12,4,12,11],[12,14,12,15],[12,19,12,21],[12,22,12,26],[12,29,12,33],[14,4,14,11],[14,13,15,16],[14,18,15,21],[14,23,15,26],[14,29,15,33],[23,4,23,11],[23,13,24,16],[23,18,24,21],[23,23,24,26],[23,29,24,33],[23,35,24,35],[20,4,20,11],[20,13,21,16],[20,18,21,21],[20,23,21,26],[20,29,21,33],[20,35,21,35],[29,4,29,11],[29,13,30,16],[29,18,30,21],[29,23,30,26],[29,29,30,33],[29,35,30,35],[26,4,26,11],[26,13,27,16],[26,18,27,21],[26,23,27,26],[26,29,27,33],[26,35,27,35],[35,4,35,11],[35,13,36,16],[35,18,36,21],[35,23,36,26],[35,29,36,33],[35,35,36,35],[32,4,32,11],[32,13,33,16],[32,18,33,21],[32,23,33,26],[32,29,33,33],[32,35,33,35],[41,4,41,11],[41,13,42,16],[41,18,42,21],[41,23,42,26],[41,29,42,33],[41,35,42,35],[38,4,38,11],[38,13,39,16],[38,18,39,21],[38,23,39,26],[38,29,39,33],[38,35,39,35],[47,4,47,11],[47,13,48,16],[47,18,48,21],[47,23,48,26],[47,29,48,33],[47,35,48,35],[44,4,44,11],[44,13,45,16],[44,18,45,21],[44,23,45,26],[44,29,45,33],[44,35,45,35],[53,4,53,11],[53,13,54,16],[53,18,54,21],[53,23,54,26],[53,29,54,33],[53,35,54,35],[50,4,50,11],[50,13,51,16],[50,18,51,21],[50,23,51,26],[50,29,51,33],[50,35,51,35],[59,4,59,11],[59,13,60,16],[59,18,60,21],[59,23,60,26],[59,29,60,33],[59,35,60,35],[56,4,56,11],[56,13,57,16],[56,18,57,21],[56,23,57,26],[56,29,57,33],[56,35,57,35],[65,4,65,11],[65,13,66,16],[65,18,66,21],[65,23,66,26],[65,29,66,33],[65,35,66,35],[62,4,62,11],[62,13,63,16],[62,18,63,21],[62,23,63,26],[62,29,63,33],[62,35,63,35],[71,4,71,11],[71,13,72,16],[71,18,72,21],[71,23,72,26],[71,29,72,33],[71,35,72,35],[68,4,68,11],[68,13,69,16],[68,18,69,21],[68,23,69,26],[68,29,69,33],[68,35,69,35],[77,4,77,11],[77,13,78,16],[77,18,78,21],[77,23,78,26],[77,29,78,33],[77,35,78,35],[74,4,74,11],[74,13,75,16],[74,18,75,21],[74,23,75,26],[74,29,75,33],[74,35,75,35],[83,4,83,11],[83,13,84,16],[83,18,84,21],[83,23,84,26],[83,29,84,33],[83,35,84,35],[80,4,80,11],[80,13,81,16],[80,18,81,21],[80,23,81,26],[80,29,81,33],[80,35,81,35],[89,4,89,11],[89,13,90,16],[89,18,90,21],[89,23,90,26],[89,29,90,33],[89,35,90,35],[86,4,86,11],[86,13,87,16],[86,18,87,21],[86,23,87,26],[86,29,87,33],[86,35,87,35],[94,4,94,11],[94,13,95,16],[94,18,95,21],[94,23,95,26],[94,29,95,33],[94,35,95,35],[91,4,91,11],[91,13,92,16],[91,18,92,21],[91,23,92,26],[91,29,92,33],[91,35,92,35],[100,4,100,11],[100,13,101,16],[100,18,101,21],[100,23,101,26],[100,29,101,33],[100,35,101,35],[97,4,97,11],[97,13,98,16],[97,18,98,21],[97,23,98,26],[97,29,98,33],[97,35,98,35],[106,4,106,11],[106,13,107,16],[106,18,107,21],[106,23,107,26],[106,29,107,33],[106,35,107,35],[103,4,103,11],[103,13,104,16],[103,18,104,21],[103,23,104,26],[103,29,104,33],[103,35,104,35],[112,4,112,11],[112,13,113,16],[112,18,113,21],[112,23,113,26],[112,29,113,33],[112,35,113,35],[109,4,109,11],[109,13,110,16],[109,18,110,21],[109,23,110,26],[109,29,110,33],[109,35,110,35],[118,4,118,11],[118,13,119,16],[118,18,119,21],[118,23,119,26],[118,29,119,33],[118,35,119,35],[115,4,115,11],[115,13,116,16],[115,18,116,21],[115,23,116,26],[115,29,116,33],[115,35,116,35],[124,17,124,32],[126,1,126,3],[126,4,126,6],[126,9,127,29],[126,33,126,36],[128,27,129,34],[129,2,130,11],[129,21,130,23],[121,4,121,11],[121,13,122,16],[121,18,122,21],[121,23,122,26],[121,29,122,33],[121,35,122,35]]}
[]
[]
[null,null,null,null,null,null,null,null,null,null,null,null,null,null,null,null,null,null,null,null,null,null,null,null,null,null,"المديرية",null,null,null,null,null,null,null,null,null,null,null,null,null,null,{"$f":"IF(AA3<>\"\",1,0)","v":1}]
[null,null,null,null,null,null,null,null,null,null,null,null,null,null,null,null,null,null,null,null,null,null,null,null,null,null,null,null,null,null,null,null,null,null,null,null,null,null,null,null,null,0]
[null,null,null,null,null,null,null,null,null,null,null,null,null,null,null,null,null,null,null,null,null,null,null,null,null,null,"الادارة",null,null,null,null,null,null,null,null,null,null,null,null,null,null,1]
[null,null,null,null,null,null,null,null,null,null,null,null,null,null,null,null,null,null,null,null,null,null,null,null,null,null,null,null,null,null,null,null,null,null,null,null,null,null,null,null,null,0]
[null,null,null,null,null,null,null,null,null,null,null,null,null,null,null,null,null," ",null,null,null,null,null,null,null,null,"المدرسة",null,null,null,null,null,null,null,null,null,null,null,null,null,null,1]
[null,null,null,null,null,null,null,null,null,null,null,null,null,null,null,null,null,null,null,null,null,null,null,null,null,null,null,null,null,null,null,null,null,null,null,null,null,null,null,null,null,0]
[null,null,null,null,null,null,null,null,null,null,null,null,null,null,null,null,null,null,null,null,null,null,null,null,null,null,null,null,null,null,null,null,null,null,null,null,null,null,null,null,null,0]
[null,null,null,null,null,null,null,null,null,null,null,null,null,null,null,null,null,null,null,null,null,null,null,null,null,null,null,null,null,null,null,null,null,null,null,null,null,null,null,null,null,0]
[null,null,null,1,null,"/",2,null,null,null,"قائمة فصل",null,null,null,null,null,null,null,null,null,null,null,null,null,null,null,null,null,null,null,null,null,null,null,null,null,null,null,null,null,null,{"$f":"IF(K11<>\"\",1,0)","v":1}]
[null,null,null,null,null,null,null,null,null,null,null,null,null,null,null,null,null,null,null,null,null,null,null,null,null,null,null,null,null,null,null,null,null,null,null,null,null,null,null,null,null,{"$f":"IF(K12<>\"\",1,0)","v":0}]
[null,null,null,null,"تاريخ الميلاد",null,null,null,null,null,null,null,null,null,"الديانة",null,null,null,null,"النوع",null,null,"اسم الطالب",null,null,null,null,null,null,"كود الطالب",null,null,null,null,null,"م",null,null,null,null,null,{"$f":"IF(AJ13<>\"\",1,0)","v":1}]
[null,null,null,null,null,null,null,null,null,null,null,null,null,null,null,null,null,null,null,null,null,null,null,null,null,null,null,null,null,null,null,null,null,null,null,null,null,null,null,null,null,{"$f":"IF(AJ14<>\"\",1,0)","v":0}]
[null,null,null,null,"2004-10-04",null,null,null,null,null,null,null,null,"مسلم",null,null,null,null,"ذكر",null,null,null,null,"ابراهيم رشدي مصطفى كامل محمد",null,null,null,null,null,451126258,null,null,null,null,null,1,null,null,null,null,null,1]
[null,null,null,null,null,null,null,null,null,null,null,null,null,null,null,null,null,null,null,null,null,null,null,null,null,null,null,null,null,null,null,null,null,null,null,null,null,null,null,null,null,0]
[null,null,null,null,null,null,null,null,null,null,null,null,null,null,null,null,null,null,null,null,null,null,null,null,null,null,null,null,null,null,null,null,null,null,null,null,null,null,null,null,null,0]
[null,null,null,null,"2005/5/22",null,null,null,null,null,null,null,null,"مسلم",null,null,null,null,"ذكر",null,null,null,null,"احمد سيد عبدالكريم احمد",null,null,null,null,null,450928914,null,null,null,null,null,2,null,null,null,null,null,1]
[null,null,null,null,null,null,null,null,null,null,null,null,null,null,null,null,null,null,null,null,null,null,null,null,null,null,null,null,null,null,null,null,null,null,null,null,null,null,null,null,null,0]
[null,null,null,null,null,null,null,null,null,null,null,null,null,null,null,null,null,null,null,null,null,null,null,null,null,null,null,null,null,null,null,null,null,null,null,null,null,null,null,null,null,0]
[null,null,null,null,"2005/4/10",null,null,null,null,null,null,null,null,"مسلم",null,null,null,null,"ذكر",null,null,null,null,"احمد مدني محمود بغدادي",null,null,null,null,null,451321977,null,null,null,null,null,3,null,null,null,null,null,1]
[null,null,null,null,null,null,null,null,null,null,null,null,null,null,null,null,null,null,null,null,null,null,null,null,null,null,null,null,null,null,null,null,null,null,null,null,null,null,null,null,null,0]
[null,null,null,null,null,null,null,null,null,null,null,null,null,null,null,null,null,null,null,null,null,null,null,null,null,null,null,null,null,null,null,null,null,null,null,null,null,null,null,null,null,0]
[null,null,null,null,"2003/3/8",null,null,null,null,null,null,null,null,"مسلم",null,null,null,null,"ذكر",null,null,null,null,"احمد مصطفى محمد عيد",null,null,null,null,null,409887367,null,null,null,null,null,4,null,null,null,null,null,1]
[null,null,null,null,null,null,null,null,null,null,null,null,null,null,null,null,null,null,null,null,null,null,null,null,null,null,null,null,null,null,null,null,null,null,null,null,null,null,null,null,null,0]
[null,null,null,null,null,null,null,null,null,null,null,null,null,null,null,null,null,null,null,null,null,null,null,null,null,null,null,null,null,null,null,null,null,null,null,null,null,null,null,null,null,0]
[null,null,null,null,"2004/3/21",null,null,null,null,null,null,null,null,"مسلم",null,null,null,null,"ذكر",null,null,null,null,"حسن محمد أحمد يونس",null,null,null,null,null,444800638,null,null,null,null,null,5,null,null,null,null,null,1]
[null,null,null,null,null,null,null,null,null,null,null,null,null,null,null,null,null,null,null,null,null,null,null,null,null,null,null,null,null,null,null,null,null,null,null,null,null,null,null,null,null,0]
[null,null,null,null,null,null,null,null,null,null,null,null,null,null,null,null,null,null,null,null,null,null,null,null,null,null,null,null,null,null,null,null,null,null,null,null,null,null,null,null,null,0]
[null,null,null,null,"2004/10/21",null,null,null,null,null,null,null,null,"مسلم",null,null,null,null,"ذكر",null,null,null,null,"سعدى أحمد سعدى عباس",null,null,null,null,null,447042671,null,null,null,null,null,6,null,null,null,null,null,1]
[null,null,null,null,null,null,null,null,null,null,null,null,null,null,null,null,null,null,null,null,null,null,null,null,null,null,null,null,null,null,null,null,null,null,null,null,null,null,null,null,null,0]
[null,null,null,null,null,null,null,null,null,null,null,null,null,null,null,null,null,null,null,null,null,null,null,null,null,null,null,null,null,null,null,null,null,null,null,null,null,null,null,null,null,0]
[null,null,null,null,"2001/1/2",null,null,null,null,null,null,null,null,"مسلم",null,null,null,null,"ذكر",null,null,null,null,"سيد على سيد أحمد",null,null,null,null,null,409864685,null,null,null,null,null,7,null,null,null,null,null,1]
[null,null,null,null,null,null,null,null,null,null,null,null,null,null,null,null,null,null,null,null,null,null,null,null,null,null,null,null,null,null,null,null,null,null,null,null,null,null,null,null,null,0]
[null,null,null,null,null,null,null,null,null,null,null,null,null,null,null,null,null,null,null,null,null,null,null,null,null,null,null,null,null,null,null,null,null,null,null,null,null,null,null,null,null,0]
[null,null,null,null,"2003/2/22",null,null,null,null,null,null,null,null,"مسلم",null,null,null,null,"ذكر",null,null,null,null,"عبد الرحمن على شحات محمد",null,null,null,null,null,409897329,null,null,null,null,null,8,null,null,null,null,null,1]
[null,null,null,null,null,null,null,null,null,null,null,null,null,null,null,null,null,null,null,null,null,null,null,null,null,null,null,null,null,null,null,null,null,null,null,null,null,null,null,null,null,0]
[null,null,null,null,null,null,null,null,null,null,null,null,null,null,null,null,null,null,null,null,null,null,null,null,null,null,null,null,null,null,null,null,null,null,null,null,null,null,null,null,null,0]
[null,null,null,null,"2005/1/4",null,null,null,null,null,null,null,null,"مسلم",null,null,null,null,"ذكر",null,null,null,null,"علاء النوبى محمد حداد",null,null,null,null,null,450453559,null,null,null,null,null,9,null,null,null,null,null,1]
[null,null,null,null,null,null,null,null,null,null,null,null,null,null,null,null,null,null,null,null,null,null,null,null,null,null,null,null,null,null,null,null,null,null,null,null,null,null,null,null,null,0]
[null,null,null,null,null,null,null,null,null,null,null,null,null,null,null,null,null,null,null,null,null,null,null,null,null,null,null,null,null,null,null,null,null,null,null,null,null,null,null,null,null,0]
[null,null,null,null,"2005/4/8",null,null,null,null,null,null,null,null,"مسلم",null,null,null,null,"ذكر",null,null,null,null,"مازن عمر منصور حمدالله",null,null,null,null,null,407756406,null,null,null,null,null,10,null,null,null,null,null,1]
[null,null,null,null,null,null,null,null,null,null,null,null,null,null,null,null,null,null,null,null,null,null,null,null,null,null,null,null,null,null,null,null,null,null,null,null,null,null,null,null,null,0]
[null,null,null,null,null,null,null,null,null,null,null,null,null,null,null,null,null,null,null,null,null,null,null,null,null,null,null,null,null,null,null,null,null,null,null,null,null,null,null,null,null,0]
[null,null,null,null,"2003/9/15",null,null,null,null,null,null,null,null,"مسلم",null,null,null,null,"ذكر",null,null,null,null,"محمد أحمد تمساح أحمد",null,null,null,null,null,409886471,null,null,null,null,null,11,null,null,null,null,null,1]
[null,null,null,null,null,null,null,null,null,null,null,null,null,null,null,null,null,null,null,null,null,null,null,null,null,null,null,null,null,null,null,null,null,null,null,null,null,null,null,null,null,0]
[null,null,null,null,null,null,null,null,null,null,null,null,null,null,null,null,null,null,null,null,null,null,null,null,null,null,null,null,null,null,null,null,null,null,null,null,null,null,null,null,null,0]
[null,null,null,null,"2004/11/1",null,null,null,null,null,null,null,null,"مسلم",null,null,null,null,"ذكر",null,null,null,null,"محمد حرز الله إبراهيم على",null,null,null,null,null,446787133,null,null,null,null,null,12,null,null,null,null,null,1]
[null,null,null,null,null,null,null,null,null,null,null,null,null,null,null,null,null,null,null,null,null,null,null,null,null,null,null,null,null,null,null,null,null,null,null,null,null,null,null,null,null,0]
[null,null,null,null,null,null,null,null,null,null,null,null,null,null,null,null,null,null,null,null,null,null,null,null,null,null,null,null,null,null,null,null,null,null,null,null,null,null,null,null,null,0]
[null,null,null,null,"2005/7/24",null,null,null,null,null,null,null,null,"مسلم",null,null,null,null,"ذكر",null,null,null,null,"محمد عبدالجابر عبدالله احمد",null,null,null,null,null,450540074,null,null,null,null,null,13,null,null,null,null,null,1]
[null,null,null,null,null,null,null,null,null,null,null,null,null,null,null,null,null,null,null,null,null,null,null,null,null,null,null,null,null,null,null,null,null,null,null,null,null,null,null,null,null,0]
[null,null,null,null,null,null,null,null,null,null,null,null,null,null,null,null,null,null,null,null,null,null,null,null,null,null,null,null,null,null,null,null,null,null,null,null,null,null,null,null,null,0]
[null,null,null,null,"2004/2/10",null,null,null,null,null,null,null,null,"مسلم",null,null,null,null,"ذكر",null,null,null,null,"محمد عز الدين أحمد سيد",null,null,null,null,null,445232202,null,null,null,null,null,14,null,null,null,null,null,1]
[null,null,null,null,null,null,null,null,null,null,null,null,null,null,null,null,null,null,null,null,null,null,null,null,null,null,null,null,null,null,null,null,null,null,null,null,null,null,null,null,null,0]
[null,null,null,null,null,null,null,null,null,null,null,null,null,null,null,null,null,null,null,null,null,null,null,null,null,null,null,null,null,null,null,null,null,null,null,null,null,null,null,null,null,0]
[null,null,null,null,"2004/9/25",null,null,null,null,null,null,null,null,"مسلم",null,null,null,null,"ذكر",null,null,null,null,"محمود أشرف على عيد",null,null,null,null,null,445258557,null,null,null,null,null,15,null,null,null,null,null,1]
[null,null,null,null,null,null,null,null,null,null,null,null,null,null,null,null,null,null,null,null,null,null,null,null,null,null,null,null,null,null,null,null,null,null,null,null,null,null,null,null,null,0]
[null,null,null,null,null,null,null,null,null,null,null,null,null,null,null,null,null,null,null,null,null,null,null,null,null,null,null,null,null,null,null,null,null,null,null,null,null,null,null,null,null,0]
[null,null,null,null,"2005/4/12",null,null,null,null,null,null,null,null,"مسلم",null,null,null,null,"ذكر",null,null,null,null,"ياسر غريب عبدالحكيم محمود",null,null,null,null,null,450540014,null,null,null,null,null,16,null,null,null,null,null,1]
[null,null,null,null,null,null,null,null,null,null,null,null,null,null,null,null,null,null,null,null,null,null,null,null,null,null,null,null,null,null,null,null,null,null,null,null,null,null,null,null,null,0]
[null,null,null,null,null,null,null,null,null,null,null,null,null,null,null,null,null,null,null,null,null,null,null,null,null,null,null,null,null,null,null,null,null,null,null,null,null,null,null,null,null,0]
[null,null,null,null,"2005/8/17",null,null,null,null,null,null,null,null,"مسلم",null,null,null,null,"ذكر",null,null,null,null,"يوسف مصطفى عويس محمد",null,null,null,null,null,446942914,null,null,null,null,null,17,null,null,null,null,null,1]
[null,null,null,null,null,null,null,null,null,null,null,null,null,null,null,null,null,null,null,null,null,null,null,null,null,null,null,null,null,null,null,null,null,null,null,null,null,null,null,null,null,0]
[null,null,null,null,null,null,null,null,null,null,null,null,null,null,null,null,null,null,null,null,null,null,null,null,null,null,null,null,null,null,null,null,null,null,null,null,null,null,null,null,null,0]
[null,null,null,null,"2005/3/20",null,null,null,null,null,null,null,null,"مسلم",null,null,null,null,"ذكر",null,null,null,null,"يونس حسن يونس حسن",null,null,null,null,null,446942744,null,null,null,null,null,18,null,null,null,null,null,1]
[null,null,null,null,null,null,null,null,null,null,null,null,null,null,null,null,null,null,null,null,null,null,null,null,null,null,null,null,null,null,null,null,null,null,null,null,null,null,null,null,null,0]
[null,null,null,null,null,null,null,null,null,null,null,null,null,null,null,null,null,null,null,null,null,null,null,null,null,null,null,null,null,null,null,null,null,null,null,null,null,null,null,null,null,0]
[null,null,null,null,"2005/9/4",null,null,null,null,null,null,null,null,"مسلم",null,null,null,null,"انثى",null,null,null,null,"اسراء حسين محمدالصغير محمود",null,null,null,null,null,450929180,null,null,null,null,null,19,null,null,null,null,null,1]
[null,null,null,null,null,null,null,null,null,null,null,null,null,null,null,null,null,null,null,null,null,null,null,null,null,null,null,null,null,null,null,null,null,null,null,null,null,null,null,null,null,0]
[null,null,null,null,null,null,null,null,null,null,null,null,null,null,null,null,null,null,null,null,null,null,null,null,null,null,null,null,null,null,null,null,null,null,null,null,null,null,null,null,null,0]
[null,null,null,null,"2005/2/22",null,null,null,null,null,null,null,null,"مسلم",null,null,null,null,"انثى",null,null,null,null,"الاء احمد محمد ابراهيم",null,null,null,null,null,450981870,null,null,null,null,null,20,null,null,null,null,null,1]
[null,null,null,null,null,null,null,null,null,null,null,null,null,null,null,null,null,null,null,null,null,null,null,null,null,null,null,null,null,null,null,null,null,null,null,null,null,null,null,null,null,0]
[null,null,null,null,null,null,null,null,null,null,null,null,null,null,null,null,null,null,null,null,null,null,null,null,null,null,null,null,null,null,null,null,null,null,null,null,null,null,null,null,null,0]
[null,null,null,null,"2002/12/3",null,null,null,null,null,null,null,null,"مسلم",null,null,null,null,"انثى",null,null,null,null,"آية صابر أحمد محمد الصغير",null,null,null,null,null,409890939,null,null,null,null,null,21,null,null,null,null,null,1]
[null,null,null,null,null,null,null,null,null,null,null,null,null,null,null,null,null,null,null,null,null,null,null,null,null,null,null,null,null,null,null,null,null,null,null,null,null,null,null,null,null,0]
[null,null,null,null,null,null,null,null,null,null,null,null,null,null,null,null,null,null,null,null,null,null,null,null,null,null,null,null,null,null,null,null,null,null,null,null,null,null,null,null,null,0]
[null,null,null,null,"2004/6/1",null,null,null,null,null,null,null,null,"مسلم",null,null,null,null,"انثى",null,null,null,null,"آية عبد الراضى أحمد حلبى",null,null,null,null,null,445237039,null,null,null,null,null,22,null,null,null,null,null,{"$f":"IF(AJ78<>\"\",1,0)","v":1}]
[null,null,null,null,null,null,null,null,null,null,null,null,null,null,null,null,null,null,null,null,null,null,null,null,null,null,null,null,null,null,null,null,null,null,null,null,null,null,null,null,null,0]
[null,null,null,null,null,null,null,null,null,null,null,null,null,null,null,null,null,null,null,null,null,null,null,null,null,null,null,null,null,null,null,null,null,null,null,null,null,null,null,null,null,0]
[null,null,null,null,"2005/3/24",null,null,null,null,null,null,null,null,"مسلم",null,null,null,null,"انثى",null,null,null,null,"ايه خلف الله محمد احمد",null,null,null,null,null,450541146,null,null,null,null,null,23,null,null,null,null,null,1]
[null,null,null,null,null,null,null,null,null,null,null,null,null,null,null,null,null,null,null,null,null,null,null,null,null,null,null,null,null,null,null,null,null,null,null,null,null,null,null,null,null,0]
[null,null,null,null,null,null,null,null,null,null,null,null,null,null,null,null,null,null,null,null,null,null,null,null,null,null,null,null,null,null,null,null,null,null,null,null,null,null,null,null,null,0]
[null,null,null,null,"2004/1/19",null,null,null,null,null,null,null,null,"مسلم",null,null,null,null,"انثى",null,null,null,null,"بسمه عبدالمبدى موسى محمد",null,null,null,null,null,444837318,null,null,null,null,null,24,null,null,null,null,null,1]
[null,null,null,null,null,null,null,null,null,null,null,null,null,null,null,null,null,null,null,null,null,null,null,null,null,null,null,null,null,null,null,null,null,null,null,null,null,null,null,null,null,0]
[null,null,null,null,null,null,null,null,null,null,null,null,null,null,null,null,null,null,null,null,null,null,null,null,null,null,null,null,null,null,null,null,null,null,null,null,null,null,null,null,null,0]
[null,null,null,null,"2004/11/21",null,null,null,null,null,null,null,null,"مسلم",null,null,null,null,"انثى",null,null,null,null,"دعاء مصطفى أحمد على",null,null,null,null,null,450453614,null,null,null,null,null,25,null,null,null,null,null,1]
[null,null,null,null,null,null,null,null,null,null,null,null,null,null,null,null,null,null,null,null,null,null,null,null,null,null,null,null,null,null,null,null,null,null,null,null,null,null,null,null,null,0]
[null,null,null,null,null,null,null,null,null,null,null,null,null,null,null,null,null,null,null,null,null,null,null,null,null,null,null,null,null,null,null,null,null,null,null,null,null,null,null,null,null,0]
[null,null,null,null,"2003/1/1",null,null,null,null,null,null,null,null,"مسلم",null,null,null,null,"انثى",null,null,null,null,"زمزم سعدى إبراهيم  محمد",null,null,null,null,null,409890134,null,null,null,null,null,26,null,null,null,null,null,1]
[null,null,null,null,null,null,null,null,null,null,null,null,null,null,null,null,null,null,null,null,null,null,null,null,null,null,null,null,null,null,null,null,null,null,null,null,null,null,null,null,null,0]
[null,null,null,null,"2005/4/18",null,null,null,null,null,null,null,null,"مسلم",null,null,null,null,"انثى",null,null,null,null,"شيماء النجار محمد محمود",null,null,null,null,null,450928972,null,null,null,null,null,27,null,null,null,null,null,1]
[null,null,null,null,null,null,null,null,null,null,null,null,null,null,null,null,null,null,null,null,null,null,null,null,null,null,null,null,null,null,null,null,null,null,null,null,null,null,null,null,null,0]
[null,null,null,null,null,null,null,null,null,null,null,null,null,null,null,null,null,null,null,null,null,null,null,null,null,null,null,null,null,null,null,null,null,null,null,null,null,null,null,null,null,0]
[null,null,null,null,"2005/1/1",null,null,null,null,null,null,null,null,"مسلم",null,null,null,null,"انثى",null,null,null,null,"عبير فهمى مكى عوض",null,null,null,null,null,450892981,null,null,null,null,null,28,null,null,null,null,null,1]
[null,null,null,null,null,null,null,null,null,null,null,null,null,null,null,null,null,null,null,null,null,null,null,null,null,null,null,null,null,null,null,null,null,null,null,null,null,null,null,null,null,0]
[null,null,null,null,null,null,null,null,null,null,null,null,null,null,null,null,null,null,null,null,null,null,null,null,null,null,null,null,null,null,null,null,null,null,null,null,null,null,null,null,null,0]
[null,null,null,null,"2005/2/8",null,null,null,null,null,null,null,null,"مسلم",null,null,null,null,"انثى",null,null,null,null,"علا سيد احمد يس",null,null,null,null,null,451352896,null,null,null,null,null,29,null,null,null,null,null,1]
[null,null,null,null,null,null,null,null,null,null,null,null,null,null,null,null,null,null,null,null,null,null,null,null,null,null,null,null,null,null,null,null,null,null,null,null,null,null,null,null,null,0]
[null,null,null,null,null,null,null,null,null,null,null,null,null,null,null,null,null,null,null,null,null,null,null,null,null,null,null,null,null,null,null,null,null,null,null,null,null,null,null,null,null,0]
[null,null,null,null,"2005/2/13",null,null,null,null,null,null,null,null,"مسلم",null,null,null,null,"انثى",null,null,null,null,"فاطمه عبدالفتاح عابدين سعيد",null,null,null,null,null,450929022,null,null,null,null,null,30,null,null,null,null,null,1]
[null,null,null,null,null,null,null,null,null,null,null,null,null,null,null,null,null,null,null,null,null,null,null,null,null,null,null,null,null,null,null,null,null,null,null,null,null,null,null,null,null,0]
[null,null,null,null,null,null,null,null,null,null,null,null,null,null,null,null,null,null,null,null,null,null,null,null,null,null,null,null,null,null,null,null,null,null,null,null,null,null,null,null,null,0]
[null,null,null,null,"2005/7/26",null,null,null,null,null,null,null,null,"مسلم",null,null,null,null,"انثى",null,null,null,null,"فريال حسن ابراهيم محمد",null,null,null,null,null,450540565,null,null,null,null,null,31,null,null,null,null,null,1]
[null,null,null,null,null,null,null,null,null,null,null,null,null,null,null,null,null,null,null,null,null,null,null,null,null,null,null,null,null,null,null,null,null,null,null,null,null,null,null,null,null,0]
[null,null,null,null,null,null,null,null,null,null,null,null,null,null,null,null,null,null,null,null,null,null,null,null,null,null,null,null,null,null,null,null,null,null,null,null,null,null,null,null,null,0]
[null,null,null,null,"2005/4/20",null,null,null,null,null,null,null,null,"مسلم",null,null,null,null,"انثى",null,null,null,null,"منال إبراهيم أحمد على",null,null,null,null,null,447042341,null,null,null,null,null,32,null,null,null,null,null,1]
[null,null,null,null,null,null,null,null,null,null,null,null,null,null,null,null,null,null,null,null,null,null,null,null,null,null,null,null,null,null,null,null,null,null,null,null,null,null,null,null,null,0]
[null,null,null,null,null,null,null,null,null,null,null,null,null,null,null,null,null,null,null,null,null,null,null,null,null,null,null,null,null,null,null,null,null,null,null,null,null,null,null,null,null,0]
[null,null,null,null,"2003/2/1",null,null,null,null,null,null,null,null,"مسلم",null,null,null,null,"انثى",null,null,null,null,"منى احمد يوسف على",null,null,null,null,null,410368593,null,null,null,null,null,33,null,null,null,null,null,1]
[null,null,null,null,null,null,null,null,null,null,null,null,null,null,null,null,null,null,null,null,null,null,null,null,null,null,null,null,null,null,null,null,null,null,null,null,null,null,null,null,null,0]
[null,null,null,null,null,null,null,null,null,null,null,null,null,null,null,null,null,null,null,null,null,null,null,null,null,null,null,null,null,null,null,null,null,null,null,null,null,null,null,null,null,0]
[null,null,null,null,"2005/1/25",null,null,null,null,null,null,null,null,"مسلم",null,null,null,null,"انثى",null,null,null,null,"نورهان حسين محمدكامل محمد",null,null,null,null,null,450540875,null,null,null,null,null,34,null,null,null,null,null,1]
[null,null,null,null,null,null,null,null,null,null,null,null,null,null,null,null,null,null,null,null,null,null,null,null,null,null,null,null,null,null,null,null,null,null,null,null,null,null,null,null,null,0]
[null,null,null,null,null,null,null,null,null,null,null,null,null,null,null,null,null,null,null,null,null,null,null,null,null,null,null,null,null,null,null,null,null,null,null,null,null,null,null,null,null,0]
[null,null,null,null,"2005/4/17",null,null,null,null,null,null,null,null,"مسلم",null,null,null,null,"انثى",null,null,null,null,"نورهان محمود أحمد محمود",null,null,null,null,null,451126175,null,null,null,null,null,35,null,null,null,null,null,1]
[null,null,null,null,null,null,null,null,null,null,null,null,null,null,null,null,null,null,null,null,null,null,null,null,null,null,null,null,null,null,null,null,null,null,null,null,null,null,null,null,null,0]
[null,null,null,null,null,null,null,null,null,null,null,null,null,null,null,null,null,null,null,null,null,null,null,null,null,null,null,null,null,null,null,null,null,null,null,null,null,null,null,null,null,0]
[null,null,null,null,"2005/3/26",null,null,null,null,null,null,null,null,"مسلم",null,null,null,null,"انثى",null,null,null,null,"هاجر عطيتو على شلبى",null,null,null,null,null,451321913,null,null,null,null,null,36,null,null,null,null,null,1]
[null,null,null,null,null,null,null,null,null,null,null,null,null,null,null,null,null,null,null,null,null,null,null,null,null,null,null,null,null,null,null,null,null,null,null,null,null,null,null,null,null,0]
[null,null,null,null,null,null,null,null,null,null,null,null,null,null,null,null,null,null,null,null,null,null,null,null,null,null,null,null,null,null,null,null,null,null,null,null,null,null,null,null,null,0]
[null,null,null,null,"2004/6/20",null,null,null,null,null,null,null,null,"مسلم",null,null,null,null,"انثى",null,null,null,null,"هناء شحات محمد سالم",null,null,null,null,null,450540661,null,null,null,null,null,37,null,null,null,null,null,1]
[null,null,null,null,null,null,null,null,null,null,null,null,null,null,null,null,null,null,null,null,null,null,null,null,null,null,null,null,null,null,null,null,null,null,null,null,null,null,null,null,null,0]
[null,null,null,null,null,null,null,null,null,null,null,null,null,null,null,null,null,null,null,null,null,null,null,null,null,null,null,null,null,null,null,null,null,null,null,null,null,null,null,null,null,0]
[null,null,null,null,null,null,null,null,null,null,null,null,null,null,null,"0",null,"بلغ عدد التلاميذ الذين لم يسجل لهم رقم قومى",null,null,null,null,null,null,null,null,null,null,null,null,null,null,null,null,null,null,null,null,null,null,null,{"$f":"IF(R125<>\"\",1,0)","v":1}]
[null,null,null,null,null,null,null,null,null,null,null,null,null,null,null,null,null,null,null,null,null,null,null,null,null,null,null,null,null,null,null,null,null,null,null,null,null,null,null,null,null,0]
[null,null,null,null,"صفحة",null,null,null,null,"تمت مراجعة بيانات الطلبة بعرفة شئون الطلبة والبيانات مطابقة لما ورد بملفات الطلبة",null,null,null,null,null,null,null,null,null,null,null,null,null,null,null,null,null,null,null,null,null,null,null,"2018-09-10",null,null,null,null,null,null,null,{"$f":"IF(AH127<>\"\",1,0)","v":1}]
[null,null,null,null,null,null,null,null,null,null,null,null,null,null,null,null,null,null,null,null,null,null,null,null,null,null,null,null,null,null,null,null,null,null,null,null,null,null,null,null,null,{"$f":"IF(P128<>\"\",1,0)","v":0}]
[null,null,null,null,null,null,null,null,null,null,null,null,null,null,null,null,null,null,null,null,null,null,null,null,null,null,null,"شئون الطلبة",null,null,null,null,null,null,null,null,null,null,null,null,null,{"$f":"IF(AB129<>\"\",1,0)","v":1}]
[null,null,"مدير المدرسة",null,null,null,null,null,null,null,null,null,null,null,null,null,null,null,null,null,null,"مسئول المعلومات ",null,null,null,null,null,null,null,null,null,null,null,null,null,null,null,null,null,null,null,{"$f":"IF(V130<>\"\",1,0)","v":1}]
[null,null,null,null,null,null,null,null,null,null,null,null,null,null,null,null,null,null,null,null,null,null,null,null,null,null,null,null,null,null,null,null,null,null,null,null,null,null,null,null,null,{"$f":"IF(AH131<>\"\",1,0)","v":0}]
[null,null,null,null,null,null,null,null,null,null,null,null,null,null,null,null,null,null,null,null,null,null,null,null,null,null,null,null,null,null,null,null,null,null,null,null,null,null,null,null,null,{"$f":"IF(AB132<>\"\",1,0)","v":0}]
[null,null,null,null,null,null,null,null,null,null,null,null,null,null,null,null,null,null,null,null,null,null,null,null,null,null,null,null,null,null,null,null,null,null,null,null,null,null,null,null,null,{"$f":"IF(V133<>\"\",1,0)","v":0}]
[null,null,null,null,null,null,null,null,null,null,null,null,null,null,null,null,null,null,null,null,null,null,null,null,null,null,null,null,null,null,null,null,null,null,null,null,null,null,null,null,null,{"$f":"IF(AH134<>\"\",1,0)","v":0}]
[null,null,null,null,null,null,null,null,null,null,null,null,null,null,null,null,null,null,null,null,null,null,null,null,null,null,null,null,null,null,null,null,null,null,null,null,null,null,null,null,null,{"$f":"IF(AH135<>\"\",1,0)","v":0}]
[null,null,null,null,null,null,null,null,null,null,null,null,null,null,null,null,null,null,null,null,null,null,null,null,null,null,null,null,null,null,null,null,null,null,null,null,null,null,null,null,null,0]
[null,null,null,null,null,null,null,null,null,null,null,null,null,null,null,null,null,null,null,null,null,null,null,null,null,null,null,null,null,null,null,null,null,null,null,null,null,null,null,null,null,0]
[null,null,null,null,null,null,null,null,null,null,null,null,null,null,null,null,null,null,null,null,null,null,null,null,null,null,null,null,null,null,null,null,null,null,null,null,null,null,null,null,null,0]
[null,null,null,null,null,null,null,null,null,null,null,null,null,null,null,null,null,null,null,null,null,null,null,null,null,null,null,null,null,null,null,null,null,null,null,null,null,null,null,null,null,0]
[null,null,null,null,null,null,null,null,null,null,null,null,null,null,null,null,null,null,null,null,null,null,null,null,null,null,null,null,null,null,null,null,null,null,null,null,null,null,null,null,null,0]
[null,null,null,null,null,null,null,null,null,null,null,null,null,null,null,null,null,null,null,null,null,null,null,null,null,null,null,null,null,null,null,null,null,null,null,null,null,null,null,null,null,0]
[null,null,null,null,null,null,null,null,null,null,null,null,null,null,null,null,null,null,null,null,null,null,null,null,null,null,null,null,null,null,null,null,null,null,null,null,null,null,null,null,null,{"$f":"IF(AJ142<>\"\",1,0)","v":0}]
[null,null,null,null,null,null,null,null,null,null,null,null,null,null,null,null,null,null,null,null,null,null,null,null,null,null,null,null,null,null,null,null,null,null,null,null,null,null,null,null,null,0]
[null,null,null,null,null,null,null,null,null,null,null,null,null,null,null,null,null,null,null,null,null,null,null,null,null,null,null,null,null,null,null,null,null,null,null,null,null,null,null,null,null,0]
[null,null,null,null,null,null,null,null,null,null,null,null,null,null,null,null,null,null,null,null,null,null,null,null,null,null,null,null,null,null,null,null,null,null,null,null,null,null,null,null,null,0]
[null,null,null,null,null,null,null,null,null,null,null,null,null,null,null,null,null,null,null,null,null,null,null,null,null,null,null,null,null,null,null,null,null,null,null,null,null,null,null,null,null,0]
[null,null,null,null,null,null,null,null,null,null,null,null,null,null,null,null,null,null,null,null,null,null,null,null,null,null,null,null,null,null,null,null,null,null,null,null,null,null,null,null,null,0]
[null,null,null,null,null,null,null,null,null,null,null,null,null,null,null,null,null,null,null,null,null,null,null,null,null,null,null,null,null,null,null,null,null,null,null,null,null,null,null,null,null,0]

{"sheet":"2-2","index":1,"n_rows":148,"n_cols":42,"rows_kept":148,"cut":false,"hidden":false,"merged":[[2,17,2,24],[2,26,3,26],[4,17,4,24],[6,17,6,24],[10,3,10,4],[10,6,10,7],[10,10,10,19],[14,35,15,35],[17,4,17,11],[17,13,18,16],[17,18,18,21],[17,23,18,26],[17,29,18,33],[17,35,18,35],[12,4,12,11],[12,14,12,15],[12,19,12,21],[12,22,12,26],[12,29,12,33],[14,4,14,11],[14,13,15,16],[14,18,15,21],[14,23,15,26],[14,29,15,33],[23,4,23,11],[23,13,24,16],[23,18,24,21],[23,23,24,26],[23,29,24,33],[23,35,24,35],[20,4,20,11],[20,13,21,16],[20,18,21,21],[20,23,21,26],[20,29,21,33],[20,35,21,35],[29,4,29,11],[29,13,30,16],[29,18,30,21],[29,23,30,26],[29,29,30,33],[29,35,30,35],[26,4,26,11],[26,13,27,16],[26,18,27,21],[26,23,27,26],[26,29,27,33],[26,35,27,35],[35,4,35,11],[35,13,36,16],[35,18,36,21],[35,23,36,26],[35,29,36,33],[35,35,36,35],[32,4,32,11],[32,13,33,16],[32,18,33,21],[32,23,33,26],[32,29,33,33],[32,35,33,35],[41,4,41,11],[41,13,42,16],[41,18,42,21],[41,23,42,26],[41,29,42,33],[41,35,42,35],[38,4,38,11],[38,13,39,16],[38,18,39,21],[38,23,39,26],[38,29,39,33],[38,35,39,35],[47,4,47,11],[47,13,48,16],[47,18,48,21],[47,23,48,26],[47,29,48,33],[47,35,48,35],[44,4,44,11],[44,13,45,16],[44,18,45,21],[44,23,45,26],[44,29,45,33],[44,35,45,35],[53,35,54,35],[56,4,56,11],[56,13,57,16],[56,18,57,21],[56,23,57,26],[56,29,57,33],[56,35,57,35],[50,4,50,11],[50,13,50,16],[50,18,50,21],[50,23,51,26],[50,29,50,33],[53,4,53,11],[53,13,54,16],[53,18,54,21],[53,23,54,26],[53,29,54,33],[62,4,62,11],[62,13,63,16],[62,18,63,21],[62,23,63,26],[62,29,63,33],[62,35,63,35],[59,4,59,11],[59,13,60,16],[59,18,60,21],[59,23,60,26],[59,29,60,33],[59,35,60,35],[68,4,68,11],[68,13,69,16],[68,18,69,21],[68,23,69,26],[68,29,69,33],[68,35,69,35],[65,4,65,11],[65,13,66,16],[65,18,66,21],[65,23,66,26],[65,29,66,33],[65,35,66,35],[74,4,74,11],[74,13,75,16],[74,18,75,21],[74,23,75,26],[74,29,75,33],[74,35,75,35],[71,4,71,11],[71,13,72,16],[71,18,72,21],[71,23,72,26],[71,29,72,33],[71,35,72,35],[80,4,80,11],[80,13,81,16],[80,18,81,21],[80,23,81,26],[80,29,81,33],[80,35,81,35],[77,4,77,11],[77,13,78,16],[77,18,78,21],[77,23,78,26],[77,29,78,33],[77,35,78,35],[86,4,86,11],[86,13,87,16],[86,18,87,21],[86,23,87,26],[86,29,87,33],[86,35,87,35],[83,4,83,11],[83,13,84,16],[83,18,84,21],[83,23,84,26],[83,29,84,33],[83,35,84,35],[88,4,88,11],[88,13,88,16],[88,18,88,21],[88,23,89,26],[88,29,88,33],[91,4,91,11],[91,13,92,16],[91,18,92,21],[91,23,92,26],[91,29,92,33],[97,4,97,11],[97,13,98,16],[97,18,98,21],[97,23,98,26],[97,29,98,33],[97,35,98,35],[91,35,92,35],[94,4,94,11],[94,13,95,16],[94,18,95,21],[94,23,95,26],[94,29,95,33],[94,35,95,35],[103,4,103,11],[103,13,104,16],[103,18,104,21],[103,23,104,26],[103,29,104,33],[103,35,104,35],[100,4,100,11],[100,13,101,16],[100,18,101,21],[100,23,101,26],[100,29,101,33],[100,35,101,35],[109,4,109,11],[109,13,110,16],[109,18,110,21],[109,23,110,26],[109,29,110,33],[109,35,110,35],[106,4,106,11],[106,13,107,16],[106,18,107,21],[106,23,107,26],[106,29,107,33],[106,35,107,35],[115,4,115,11],[115,13,116,16],[115,18,116,21],[115,23,116,26],[115,29,116,33],[115,35,116,35],[112,4,112,11],[112,13,113,16],[112,18,113,21],[112,23,113,26],[112,29,113,33],[112,35,113,35],[121,4,121,11],[121,13,122,16],[121,18,122,21],[121,23,122,26],[121,29,122,33],[121,35,122,35],[118,4,118,11],[118,13,119,16],[118,18,119,21],[118,23,119,26],[118,29,119,33],[118,35,119,35],[127,17,127,32],[129,1,129,3],[129,4,129,6],[129,9,130,29],[129,33,129,36],[131,27,132,34],[132,2,133,11],[132,21,133,23],[124,4,124,11],[124,13,125,16],[124,18,125,21],[124,23,125,26],[124,29,125,33],[124,35,125,35]]}
[]
[]
[null,null,null,null,null,null,null,null,null,null,null,null,null,null,null,null,null,null,null,null,null,null,null,null,null,null,"المديرية",null,null,null,null,null,null,null,null,null,null,null,null,null,null,{"$f":"IF(AA3<>\"\",1,0)","v":1}]
[null,null,null,null,null,null,null,null,null,null,null,null,null,null,null,null,null,null,null,null,null,null,null,null,null,null,null,null,null,null,null,null,null,null,null,null,null,null,null,null,null,0]
[null,null,null,null,null,null,null,null,null,null,null,null,null,null,null,null,null,null,null,null,null,null,null,null,null,null,"الادارة",null,null,null,null,null,null,null,null,null,null,null,null,null,null,1]
[null,null,null,null,null,null,null,null,null,null,null,null,null,null,null,null,null,null,null,null,null,null,null,null,null,null,null,null,null,null,null,null,null,null,null,null,null,null,null,null,null,0]
[null,null,null,null,null,null,null,null,null,null,null,null,null,null,null,null,null,null,null,null,null,null,null,null,null,null,"المدرسة",null,null,null,null,null,null,null,null,null,null,null,null,null,null,1]
[null,null,null,null,null,null,null,null,null,null,null,null,null,null,null,null,null,null,null,null,null,null,null,null,null,null,null,null,null,null,null,null,null,null,null,null,null,null,null,null,null,0]
[null,null,null,null,null,null,null,null,null,null,null,null,null,null,null,null,null,null,null,null,null,null,null,null,null,null,null,null,null,null,null,null,null,null,null,null,null,null,null,null,null,0]
[null,null,null,null,null,null,null,null,null,null,null,null,null,null,null,null,null,null,null,null,null,null,null,null,null,null,null,null,null,null,null,null,null,null,null,null,null,null,null,null,null,0]
[null,null,null,2,null,"/",2,null,null,null,"قائمة فصل",null,null,null,null,null,null,null,null,null,null,null,null,null,null,null,null,null,null,null,null,null,null,null,null,null,null,null,null,null,null,{"$f":"IF(K11<>\"\",1,0)","v":1}]
[null,null,null,null,null,null,null,null,null,null,null,null,null,null,null,null,null,null,null,null,null,null,null,null,null,null,null,null,null,null,null,null,null,null,null,null,null,null,null,null,null,{"$f":"IF(K12<>\"\",1,0)","v":0}]
[null,null,null,null,"تاريخ الميلاد",null,null,null,null,null,null,null,null,null,"الديانة",null,null,null,null,"النوع",null,null,"اسم الطالب",null,null,null,null,null,null,"كود الطالب",null,null,null,null,null,"م",null,null,null,null,null,{"$f":"IF(AJ13<>\"\",1,0)","v":1}]
[null,null,null,null,null,null,null,null,null,null,null,null,null,null,null,null,null,null,null,null,null,null,null,null,null,null,null,null,null,null,null,null,null,null,null,null,null,null,null,null,null,{"$f":"IF(AJ14<>\"\",1,0)","v":0}]
[null,null,null,null,"2005/8/23",null,null,null,null,null,null,null,null,"مسلم",null,null,null,null,"ذكر",null,null,null,null,"احمد ابراهيم محمد ابراهيم",null,null,null,null,null,450540479,null,null,null,null,null,1,null,null,null,null,null,1]
[null,null,null,null,null,null,null,null,null,null,null,null,null,null,null,null,null,null,null,null,null,null,null,null,null,null,null,null,null,null,null,null,null,null,null,null,null,null,null,null,null,0]
[null,null,null,null,null,null,null,null,null,null,null,null,null,null,null,null,null,null,null,null,null,null,null,null,null,null,null,null,null,null,null,null,null,null,null,null,null,null,null,null,null,0]
[null,null,null,null,"2005/8/8",null,null,null,null,null,null,null,null,"مسلم",null,null,null,null,"ذكر",null,null,null,null,"احمد حامد علي حامد",null,null,null,null,null,451352973,null,null,null,null,null,2,null,null,null,null,null,1]
[null,null,null,null,null,null,null,null,null,null,null,null,null,null,null,null,null,null,null,null,null,null,null,null,null,null,null,null,null,null,null,null,null,null,null,null,null,null,null,null,null,0]
[null,null,null,null,null,null,null,null,null,null,null,null,null,null,null,null,null,null,null,null,null,null,null,null,null,null,null,null,null,null,null,null,null,null,null,null,null,null,null,null,null,0]
[null,null,null,null,"2005/1/1",null,null,null,null,null,null,null,null,"مسلم",null,null,null,null,"ذكر",null,null,null,null,"احمد محمد شاكر مدني احمد",null,null,null,null,null,447044951,null,null,null,null,null,3,null,null,null,null,null,1]
[null,null,null,null,null,null,null,null,null,null,null,null,null,null,null,null,null,null,null,null,null,null,null,null,null,null,null,null,null,null,null,null,null,null,null,null,null,null,null,null,null,0]
[null,null,null,null,null,null,null,null,null,null,null,null,null,null,null,null,null,null,null,null,null,null,null,null,null,null,null,null,null,null,null,null,null,null,null,null,null,null,null,null,null,0]
[null,null,null,null,"2003/6/1",null,null,null,null,null,null,null,null,"مسلم",null,null,null,null,"ذكر",null,null,null,null,"تامر بخيت احمد الصغير",null,null,null,null,null,409887155,null,null,null,null,null,4,null,null,null,null,null,1]
[null,null,null,null,null,null,null,null,null,null,null,null,null,null,null,null,null,null,null,null,null,null,null,null,null,null,null,null,null,null,null,null,null,null,null,null,null,null,null,null,null,0]
[null,null,null,null,null,null,null,null,null,null,null,null,null,null,null,null,null,null,null,null,null,null,null,null,null,null,null,null,null,null,null,null,null,null,null,null,null,null,null,null,null,0]
[null,null,null,null,"2005/3/19",null,null,null,null,null,null,null,null,"مسلم",null,null,null,null,"ذكر",null,null,null,null,"حاتم بخيت أحمد الصغير",null,null,null,null,null,451126143,null,null,null,null,null,5,null,null,null,null,null,1]
[null,null,null,null,null,null,null,null,null,null,null,null,null,null,null,null,null,null,null,null,null,null,null,null,null,null,null,null,null,null,null,null,null,null,null,null,null,null,null,null,null,0]
[null,null,null,null,null,null,null,null,null,null,null,null,null,null,null,null,null,null,null,null,null,null,null,null,null,null,null,null,null,null,null,null,null,null,null,null,null,null,null,null,null,0]
[null,null,null,null,"2002/11/2",null,null,null,null,null,null,null,null,"مسلم",null,null,null,null,"ذكر",null,null,null,null,"حسن محمد مصطفى على",null,null,null,null,null,409896007,null,null,null,null,null,6,null,null,null,null,null,1]
[null,null,null,null,null,null,null,null,null,null,null,null,null,null,null,null,null,null,null,null,null,null,null,null,null,null,null,null,null,null,null,null,null,null,null,null,null,null,null,null,null,0]
[null,null,null,null,null,null,null,null,null,null,null,null,null,null,null,null,null,null,null,null,null,null,null,null,null,null,null,null,null,null,null,null,null,null,null,null,null,null,null,null,null,0]
[null,null,null,null,"2005/4/14",null,null,null,null,null,null,null,null,"مسلم",null,null,null,null,"ذكر",null,null,null,null,"حماده حسن محمود إبراهيم",null,null,null,null,null,451644872,null,null,null,null,null,7,null,null,null,null,null,1]
[null,null,null,null,null,null,null,null,null,null,null,null,null,null,null,null,null,null,null,null,null,null,null,null,null,null,null,null,null,null,null,null,null,null,null,null,null,null,null,null,null,0]
[null,null,null,null,null,null,null,null,null,null,null,null,null,null,null,null,null,null,null,null,null,null,null,null,null,null,null,null,null,null,null,null,null,null,null,null,null,null,null,null,null,0]
[null,null,null,null,"2004/2/10",null,null,null,null,null,null,null,null,"مسلم",null,null,null,null,"ذكر",null,null,null,null,"زياد حسين إسماعيل أحمد",null,null,null,null,null,450981792,null,null,null,null,null,8,null,null,null,null,null,1]
[null,null,null,null,null,null,null,null,null,null,null,null,null,null,null,null,null,null,null,null,null,null,null,null,null,null,null,null,null,null,null,null,null,null,null,null,null,null,null,null,null,0]
[null,null,null,null,null,null,null,null,null,null,null,null,null,null,null,null,null,null,null,null,null,null,null,null,null,null,null,null,null,null,null,null,null,null,null,null,null,null,null,null,null,0]
[null,null,null,null,"2005/3/1",null,null,null,null,null,null,null,null,"مسلم",null,null,null,null,"ذكر",null,null,null,null,"زياد عبيد محمود محمد",null,null,null,null,null,451405777,null,null,null,null,null,9,null,null,null,null,null,1]
[null,null,null,null,null,null,null,null,null,null,null,null,null,null,null,null,null,null,null,null,null,null,null,null,null,null,null,null,null,null,null,null,null,null,null,null,null,null,null,null,null,0]
[null,null,null,null,null,null,null,null,null,null,null,null,null,null,null,null,null,null,null,null,null,null,null,null,null,null,null,null,null,null,null,null,null,null,null,null,null,null,null,null,null,0]
[null,null,null,null,"2004/11/6",null,null,null,null,null,null,null,null,"مسلم",null,null,null,null,"ذكر",null,null,null,null,"عبد الرحمن حسن يوسف محمد",null,null,null,null,null,446787262,null,null,null,null,null,10,null,null,null,null,null,1]
[null,null,null,null,null,null,null,null,null,null,null,null,null,null,null,null,null,null,null,null,null,null,null,null,null,null,null,null,null,null,null,null,null,null,null,null,null,null,null,null,null,0]
[null,null,null,null,null,null,null,null,null,null,null,null,null,null,null,null,null,null,null,null,null,null,null,null,null,null,null,null,null,null,null,null,null,null,null,null,null,null,null,null,null,0]
[null,null,null,null,"2003/2/1",null,null,null,null,null,null,null,null,"مسلم",null,null,null,null,"ذكر",null,null,null,null,"عبد الرحمن عبد الحميد أحمد يسن",null,null,null,null,null,409738714,null,null,null,null,null,11,null,null,null,null,null,1]
[null,null,null,null,null,null,null,null,null,null,null,null,null,null,null,null,null,null,null,null,null,null,null,null,null,null,null,null,null,null,null,null,null,null,null,null,null,null,null,null,null,0]
[null,null,null,null,null,null,null,null,null,null,null,null,null,null,null,null,null,null,null,null,null,null,null,null,null,null,null,null,null,null,null,null,null,null,null,null,null,null,null,null,null,0]
[null,null,null,null,"2005/8/29",null,null,null,null,null,null,null,null,"مسلم",null,null,null,null,"ذكر",null,null,null,null,"عبد الرحمن محمد محمد عبد الجليل",null,null,null,null,null,446943003,null,null,null,null,null,12,null,null,null,null,null,1]
[null,null,null,null,null,null,null,null,null,null,null,null,null,null,null,null,null,null,null,null,null,null,null,null,null,null,null,null,null,null,null,null,null,null,null,null,null,null,null,null,null,0]
[null,null,null,null,null,null,null,null,null,null,null,null,null,null,null,null,null,null,null,null,null,null,null,null,null,null,null,null,null,null,null,null,null,null,null,null,null,null,null,null,null,0]
[null,null,null,null,"2004/7/17",null,null,null,null,null,null,null,null,"مسلم",null,null,null,null,"ذكر",null,null,null,null,"عبدالرحمن إسماعيل عبداللطيف ",null,null,null,null,null,444819713,null,null,null,null,null,13,null,null,null,null,null,1]
[null,null,null,null,null,null,null,null,null,null,null,null,null,null,null,null,null,null,null,null,null,null,null,null,null,null,null,null,null,null,null,null,null,null,null,null,null,null,null,null,null,0]
[null,null,null,null,null,null,null,null,null,null,null,null,null,null,null,null,null,null,null,null,null,null,null,null,null,null,null,null,null,null,null,null,null,null,null,null,null,null,null,null,null,0]
[null,null,null,null,"2004/10/2",null,null,null,null,null,null,null,null,"مسلم",null,null,null,null,"ذكر",null,null,null,null,"عبدالله عبدالحميد احمد يس",null,null,null,null,null,455818732,null,null,null,null,null,14,null,null,null,null,null,1]
[null,null,null,null,null,null,null,null,null,null,null,null,null,null,null,null,null,null,null,null,null,null,null,null,null,null,null,null,null,null,null,null,null,null,null,null,null,null,null,null,null,0]
[null,null,null,null,null,null,null,null,null,null,null,null,null,null,null,null,null,null,null,null,null,null,null,null,null,null,null,null,null,null,null,null,null,null,null,null,null,null,null,null,null,0]
[null,null,null,null,"2004/11/18",null,null,null,null,null,null,null,null,"مسلم",null,null,null,null,"ذكر",null,null,null,null,"عمر فكرى أبوضيف أحمد",null,null,null,null,null,450982078,null,null,null,null,null,15,null,null,null,null,null,1]
[null,null,null,null,null,null,null,null,null,null,null,null,null,null,null,null,null,null,null,null,null,null,null,null,null,null,null,null,null,null,null,null,null,null,null,null,null,null,null,null,null,0]
[null,null,null,null,null,null,null,null,null,null,null,null,null,null,null,null,null,null,null,null,null,null,null,null,null,null,null,null,null,null,null,null,null,null,null,null,null,null,null,null,null,0]
[null,null,null,null,"2004/2/10",null,null,null,null,null,null,null,null,"مسلم",null,null,null,null,"ذكر",null,null,null,null,"محمد صلاح عبد الفتاح امين",null,null,null,null,null,444821296,null,null,null,null,null,16,null,null,null,null,null,1]
[null,null,null,null,null,null,null,null,null,null,null,null,null,null,null,null,null,null,null,null,null,null,null,null,null,null,null,null,null,null,null,null,null,null,null,null,null,null,null,null,null,0]
[null,null,null,null,null,null,null,null,null,null,null,null,null,null,null,null,null,null,null,null,null,null,null,null,null,null,null,null,null,null,null,null,null,null,null,null,null,null,null,null,null,0]
[null,null,null,null,"2004/5/19",null,null,null,null,null,null,null,null,"مسلم",null,null,null,null,"ذكر",null,null,null,null,"محمود حسين محمد مصطفى",null,null,null,null,null,445226968,null,null,null,null,null,17,null,null,null,null,null,1]
[null,null,null,null,null,null,null,null,null,null,null,null,null,null,null,null,null,null,null,null,null,null,null,null,null,null,null,null,null,null,null,null,null,null,null,null,null,null,null,null,null,0]
[null,null,null,null,null,null,null,null,null,null,null,null,null,null,null,null,null,null,null,null,null,null,null,null,null,null,null,null,null,null,null,null,null,null,null,null,null,null,null,null,null,0]
[null,null,null,null,"2004/1/1",null,null,null,null,null,null,null,null,"مسلم",null,null,null,null,"ذكر",null,null,null,null,"يوسف النوبى على عبد الكريم",null,null,null,null,null,445235514,null,null,null,null,null,18,null,null,null,null,null,1]
[null,null,null,null,null,null,null,null,null,null,null,null,null,null,null,null,null,null,null,null,null,null,null,null,null,null,null,null,null,null,null,null,null,null,null,null,null,null,null,null,null,0]
[null,null,null,null,null,null,null,null,null,null,null,null,null,null,null,null,null,null,null,null,null,null,null,null,null,null,null,null,null,null,null,null,null,null,null,null,null,null,null,null,null,0]
[null,null,null,null,"2005/5/12",null,null,null,null,null,null,null,null,"مسلم",null,null,null,null,"انثى",null,null,null,null,"اية حسين محمد احمد",null,null,null,null,null,446942792,null,null,null,null,null,19,null,null,null,null,null,1]
[null,null,null,null,null,null,null,null,null,null,null,null,null,null,null,null,null,null,null,null,null,null,null,null,null,null,null,null,null,null,null,null,null,null,null,null,null,null,null,null,null,0]
[null,null,null,null,null,null,null,null,null,null,null,null,null,null,null,null,null,null,null,null,null,null,null,null,null,null,null,null,null,null,null,null,null,null,null,null,null,null,null,null,null,0]
[null,null,null,null,"2005/1/4",null,null,null,null,null,null,null,null,"مسلم",null,null,null,null,"انثى",null,null,null,null,"اية عبدالفتاح احمد علي",null,null,null,null,null,450453651,null,null,null,null,null,20,null,null,null,null,null,1]
[null,null,null,null,null,null,null,null,null,null,null,null,null,null,null,null,null,null,null,null,null,null,null,null,null,null,null,null,null,null,null,null,null,null,null,null,null,null,null,null,null,0]
[null,null,null,null,null,null,null,null,null,null,null,null,null,null,null,null,null,null,null,null,null,null,null,null,null,null,null,null,null,null,null,null,null,null,null,null,null,null,null,null,null,0]
[null,null,null,null,"2004/11/6",null,null,null,null,null,null,null,null,"مسلم",null,null,null,null,"انثى",null,null,null,null,"ايمان حسن يوسف محمد",null,null,null,null,null,446942667,null,null,null,null,null,21,null,null,null,null,null,1]
[null,null,null,null,null,null,null,null,null,null,null,null,null,null,null,null,null,null,null,null,null,null,null,null,null,null,null,null,null,null,null,null,null,null,null,null,null,null,null,null,null,0]
[null,null,null,null,null,null,null,null,null,null,null,null,null,null,null,null,null,null,null,null,null,null,null,null,null,null,null,null,null,null,null,null,null,null,null,null,null,null,null,null,null,0]
[null,null,null,null,"2005/2/24",null,null,null,null,null,null,null,null,"مسلم",null,null,null,null,"انثى",null,null,null,null,"ايه علي سيد محمد",null,null,null,null,null,450929060,null,null,null,null,null,22,null,null,null,null,null,{"$f":"IF(AJ78<>\"\",1,0)","v":1}]
[null,null,null,null,null,null,null,null,null,null,null,null,null,null,null,null,null,null,null,null,null,null,null,null,null,null,null,null,null,null,null,null,null,null,null,null,null,null,null,null,null,0]
[null,null,null,null,null,null,null,null,null,null,null,null,null,null,null,null,null,null,null,null,null,null,null,null,null,null,null,null,null,null,null,null,null,null,null,null,null,null,null,null,null,0]
[null,null,null,null,"2005/6/2",null,null,null,null,null,null,null,null,"مسلم",null,null,null,null,"انثى",null,null,null,null,"رحمة عبد الله موسى مصطفى",null,null,null,null,null,411408441,null,null,null,null,null,23,null,null,null,null,null,1]
[null,null,null,null,null,null,null,null,null,null,null,null,null,null,null,null,null,null,null,null,null,null,null,null,null,null,null,null,null,null,null,null,null,null,null,null,null,null,null,null,null,0]
[null,null,null,null,null,null,null,null,null,null,null,null,null,null,null,null,null,null,null,null,null,null,null,null,null,null,null,null,null,null,null,null,null,null,null,null,null,null,null,null,null,0]
[null,null,null,null,"2005/8/14",null,null,null,null,null,null,null,null,"مسلم",null,null,null,null,"انثى",null,null,null,null,"ريم غريب مصطفى على",null,null,null,null,null,451535790,null,null,null,null,null,24,null,null,null,null,null,1]
[null,null,null,null,null,null,null,null,null,null,null,null,null,null,null,null,null,null,null,null,null,null,null,null,null,null,null,null,null,null,null,null,null,null,null,null,null,null,null,null,null,0]
[null,null,null,null,null,null,null,null,null,null,null,null,null,null,null,null,null,null,null,null,null,null,null,null,null,null,null,null,null,null,null,null,null,null,null,null,null,null,null,null,null,0]
[null,null,null,null,"2003/11/2",null,null,null,null,null,null,null,null,"مسلم",null,null,null,null,"انثى",null,null,null,null,"شيماء خلف الله اسماعيل علي",null,null,null,null,null,444824066,null,null,null,null,null,25,null,null,null,null,null,1]
[null,null,null,null,null,null,null,null,null,null,null,null,null,null,null,null,null,null,null,null,null,null,null,null,null,null,null,null,null,null,null,null,null,null,null,null,null,null,null,null,null,0]
[null,null,null,null,"2004/11/8",null,null,null,null,null,null,null,null,"مسلم",null,null,null,null,"انثى",null,null,null,null,"شيماء عبد المعطى أحمد الصغير ",null,null,null,null,null,411408535,null,null,null,null,null,26,null,null,null,null,null,1]
[null,null,null,null,null,null,null,null,null,null,null,null,null,null,null,null,null,null,null,null,null,null,null,null,null,null,null,null,null,null,null,null,null,null,null,null,null,null,null,null,null,0]
[null,null,null,null,null,null,null,null,null,null,null,null,null,null,null,null,null,null,null,null,null,null,null,null,null,null,null,null,null,null,null,null,null,null,null,null,null,null,null,null,null,0]
[null,null,null,null,"2005/2/19",null,null,null,null,null,null,null,null,"مسلم",null,null,null,null,"انثى",null,null,null,null,"غاده محمد احمد محمود",null,null,null,null,null,450540947,null,null,null,null,null,27,null,null,null,null,null,1]
[null,null,null,null,null,null,null,null,null,null,null,null,null,null,null,null,null,null,null,null,null,null,null,null,null,null,null,null,null,null,null,null,null,null,null,null,null,null,null,null,null,0]
[null,null,null,null,null,null,null,null,null,null,null,null,null,null,null,null,null,null,null,null,null,null,null,null,null,null,null,null,null,null,null,null,null,null,null,null,null,null,null,null,null,0]
[null,null,null,null,"2005/8/20",null,null,null,null,null,null,null,null,"مسلم",null,null,null,null,"انثى",null,null,null,null,"فاطمة عبد الجابر مصطفى أحمد",null,null,null,null,null,411408590,null,null,null,null,null,28,null,null,null,null,null,1]
[null,null,null,null,null,null,null,null,null,null,null,null,null,null,null,null,null,null,null,null,null,null,null,null,null,null,null,null,null,null,null,null,null,null,null,null,null,null,null,null,null,0]
[null,null,null,null,null,null,null,null,null,null,null,null,null,null,null,null,null,null,null,null,null,null,null,null,null,null,null,null,null,null,null,null,null,null,null,null,null,null,null,null,null,0]
[null,null,null,null,"2005/5/29",null,null,null,null,null,null,null,null,"مسلم",null,null,null,null,"انثى",null,null,null,null,"فاطمه خلف الله اسماعيل علي",null,null,null,null,null,450540802,null,null,null,null,null,29,null,null,null,null,null,1]
[null,null,null,null,null,null,null,null,null,null,null,null,null,null,null,null,null,null,null,null,null,null,null,null,null,null,null,null,null,null,null,null,null,null,null,null,null,null,null,null,null,0]
[null,null,null,null,null,null,null,null,null,null,null,null,null,null,null,null,null,null,null,null,null,null,null,null,null,null,null,null,null,null,null,null,null,null,null,null,null,null,null,null,null,0]
[null,null,null,null,"2005/7/19",null,null,null,null,null,null,null,null,"مسلم",null,null,null,null,"انثى",null,null,null,null,"مروه سالم يوسف علي",null,null,null,null,null,450929115,null,null,null,null,null,30,null,null,null,null,null,1]
[null,null,null,null,null,null,null,null,null,null,null,null,null,null,null,null,null,null,null,null,null,null,null,null,null,null,null,null,null,null,null,null,null,null,null,null,null,null,null,null,null,0]
[null,null,null,null,null,null,null,null,null,null,null,null,null,null,null,null,null,null,null,null,null,null,null,null,null,null,null,null,null,null,null,null,null,null,null,null,null,null,null,null,null,0]
[null,null,null,null,"2004/6/23",null,null,null,null,null,null,null,null,"مسلم",null,null,null,null,"انثى",null,null,null,null,"منار سلام حسن على",null,null,null,null,null,445225427,null,null,null,null,null,31,null,null,null,null,null,1]
[null,null,null,null,null,null,null,null,null,null,null,null,null,null,null,null,null,null,null,null,null,null,null,null,null,null,null,null,null,null,null,null,null,null,null,null,null,null,null,null,null,0]
[null,null,null,null,null,null,null,null,null,null,null,null,null,null,null,null,null,null,null,null,null,null,null,null,null,null,null,null,null,null,null,null,null,null,null,null,null,null,null,null,null,0]
[null,null,null,null,"2005/3/2",null,null,null,null,null,null,null,null,"مسلم",null,null,null,null,"انثى",null,null,null,null,"ميرفت محمد الشاذلى محمد",null,null,null,null,null,451322129,null,null,null,null,null,32,null,null,null,null,null,1]
[null,null,null,null,null,null,null,null,null,null,null,null,null,null,null,null,null,null,null,null,null,null,null,null,null,null,null,null,null,null,null,null,null,null,null,null,null,null,null,null,null,0]
[null,null,null,null,null,null,null,null,null,null,null,null,null,null,null,null,null,null,null,null,null,null,null,null,null,null,null,null,null,null,null,null,null,null,null,null,null,null,null,null,null,0]
[null,null,null,null,"2005/8/25",null,null,null,null,null,null,null,null,"مسلم",null,null,null,null,"انثى",null,null,null,null,"نهى عبيد عبد الفتاح حسين",null,null,null,null,null,450981934,null,null,null,null,null,33,null,null,null,null,null,1]
[null,null,null,null,null,null,null,null,null,null,null,null,null,null,null,null,null,null,null,null,null,null,null,null,null,null,null,null,null,null,null,null,null,null,null,null,null,null,null,null,null,0]
[null,null,null,null,null,null,null,null,null,null,null,null,null,null,null,null,null,null,null,null,null,null,null,null,null,null,null,null,null,null,null,null,null,null,null,null,null,null,null,null,null,0]
[null,null,null,null,"2004/10/19",null,null,null,null,null,null,null,null,"مسلم",null,null,null,null,"انثى",null,null,null,null,"نورهان عادل سانوسي امين",null,null,null,null,null,450540728,null,null,null,null,null,34,null,null,null,null,null,1]
[null,null,null,null,null,null,null,null,null,null,null,null,null,null,null,null,null,null,null,null,null,null,null,null,null,null,null,null,null,null,null,null,null,null,null,null,null,null,null,null,null,0]
[null,null,null,null,null,null,null,null,null,null,null,null,null,null,null,null,null,null,null,null,null,null,null,null,null,null,null,null,null,null,null,null,null,null,null,null,null,null,null,null,null,0]
[null,null,null,null,"2005/9/27",null,null,null,null,null,null,null,null,"مسلم",null,null,null,null,"انثى",null,null,null,null,"هبة الله أحمد محمود على",null,null,null,null,null,451322027,null,null,null,null,null,35,null,null,null,null,null,1]
[null,null,null,null,null,null,null,null,null,null,null,null,null,null,null,null,null,null,null,null,null,null,null,null,null,null,null,null,null,null,null,null,null,null,null,null,null,null,null,null,null,0]
[null,null,null,null,null,null,null,null,null,null,null,null,null,null,null,null,null,null,null,null,null,null,null,null,null,null,null,null,null,null,null,null,null,null,null,null,null,null,null,null,null,0]
[null,null,null,null,"2005/6/21",null,null,null,null,null,null,null,null,"مسلم",null,null,null,null,"انثى",null,null,null,null,"هدير خلف الله عبد الله أحمد",null,null,null,null,null,451126191,null,null,null,null,null,36,null,null,null,null,null,1]
[null,null,null,null,null,null,null,null,null,null,null,null,null,null,null,null,null,null,null,null,null,null,null,null,null,null,null,null,null,null,null,null,null,null,null,null,null,null,null,null,null,0]
[null,null,null,null,null,null,null,null,null,null,null,null,null,null,null,null,null,null,null,null,null,null,null,null,null,null,null,null,null,null,null,null,null,null,null,null,null,null,null,null,null,0]
[null,null,null,null,"2004/12/9",null,null,null,null,null,null,null,null,"مسلم",null,null,null,null,"انثى",null,null,null,null,"وفاء أحمد عبدالحكيم محمود",null,null,null,null,null,450539917,null,null,null,null,null,37,null,null,null,null,null,1]
[null,null,null,null,null,null,null,null,null,null,null,null,null,null,null,null,null,null,null,null,null,null,null,null,null,null,null,null,null,null,null,null,null,null,null,null,null,null,null,null,null,0]
[null,null,null,null,null,null,null,null,null,null,null,null,null,null,null,null,null,null,null,null,null,null,null,null,null,null,null,null,null,null,null,null,null,null,null,null,null,null,null,null,null,0]
[null,null,null,null,"2005/2/23",null,null,null,null,null,null,null,null,"مسلم",null,null,null,null,"انثى",null,null,null,null,"ياسمين محمد مكى عوض",null,null,null,null,null,451347349,null,null,null,null,null,38,null,null,null,null,null,1]
[null,null,null,null,null,null,null,null,null,null,null,null,null,null,null,null,null,null,null,null,null,null,null,null,null,null,null,null,null,null,null,null,null,null,null,null,null,null,null,null,null,0]
[null,null,null,null,null,null,null,null,null,null,null,null,null,null,null,null,null,null,null,null,null,null,null,null,null,null,null,null,null,null,null,null,null,null,null,null,null,null,null,null,null,0]
[null,null,null,null,null,null,null,null,null,null,null,null,null,null,null,"0",null,"بلغ عدد التلاميذ الذين لم يسجل لهم رقم قومى",null,null,null,null,null,null,null,null,null,null,null,null,null,null,null,null,null,null,null,null,null,null,null,{"$f":"IF(P128<>\"\",1,0)","v":1}]
[null,null,null,null,null,null,null,null,null,null,null,null,null,null,null,null,null,null,null,null,null,null,null,null,null,null,null,null,null,null,null,null,null,null,null,null,null,null,null,null,null,{"$f":"IF(P129<>\"\",1,0)","v":0}]
[null,2,null,null,"صفحة",null,null,null,null,"تمت مراجعة بيانات الطلبة بعرفة شئون الطلبة والبيانات مطابقة لما ورد بملفات الطلبة",null,null,null,null,null,null,null,null,null,null,null,null,null,null,null,null,null,null,null,null,null,null,null,"2018-09-10",null,null,null,null,null,null,null,{"$f":"IF(AH130<>\"\",1,0)","v":1}]
[null,null,null,null,null,null,null,null,null,null,null,null,null,null,null,null,null,null,null,null,null,null,null,null,null,null,null,null,null,null,null,null,null,null,null,null,null,null,null,null,null,{"$f":"IF(AH131<>\"\",1,0)","v":0}]
[null,null,null,null,null,null,null,null,null,null,null,null,null,null,null,null,null,null,null,null,null,null,null,null,null,null,null,"شئون الطلبة",null,null,null,null,null,null,null,null,null,null,null,null,null,{"$f":"IF(AB132<>\"\",1,0)","v":1}]
[null,null,"مدير المدرسة",null,null,null,null,null,null,null,null,null,null,null,null,null,null,null,null,null,null,"مسئول المعلومات ",null,null,null,null,null,null,null,null,null,null,null,null,null,null,null,null,null,null,null,{"$f":"IF(V133<>\"\",1,0)","v":1}]
[null,null,null,null,null,null,null,null,null,null,null,null,null,null,null,null,null,null,null,null,null,null,null,null,null,null,null,null,null,null,null,null,null,null,null,null,null,null,null,null,null,{"$f":"IF(AH134<>\"\",1,0)","v":0}]
[null,null,null,null,null,null,null,null,null,null,null,null,null,null,null,null,null,null,null,null,null,null,null,null,null,null,null,null,null,null,null,null,null,null,null,null,null,null,null,null,null,{"$f":"IF(AH135<>\"\",1,0)","v":0}]
[null,null,null,null,null,null,null,null,null,null,null,null,null,null,null,null,null,null,null,null,null,null,null,null,null,null,null,null,null,null,null,null,null,null,null,null,null,null,null,null,null,0]
[null,null,null,null,null,null,null,null,null,null,null,null,null,null,null,null,null,null,null,null,null,null,null,null,null,null,null,null,null,null,null,null,null,null,null,null,null,null,null,null,null,0]
[null,null,null,null,null,null,null,null,null,null,null,null,null,null,null,null,null,null,null,null,null,null,null,null,null,null,null,null,null,null,null,null,null,null,null,null,null,null,null,null,null,0]
[null,null,null,null,null,null,null,null,null,null,null,null,null,null,null,null,null,null,null,null,null,null,null,null,null,null,null,null,null,null,null,null,null,null,null,null,null,null,null,null,null,0]
[null,null,null,null,null,null,null,null,null,null,null,null,null,null,null,null,null,null,null,null,null,null,null,null,null,null,null,null,null,null,null,null,null,null,null,null,null,null,null,null,null,0]
[null,null,null,null,null,null,null,null,null,null,null,null,null,null,null,null,null,null,null,null,null,null,null,null,null,null,null,null,null,null,null,null,null,null,null,null,null,null,null,null,null,0]
[null,null,null,null,null,null,null,null,null,null,null,null,null,null,null,null,null,null,null,null,null,null,null,null,null,null,null,null,null,null,null,null,null,null,null,null,null,null,null,null,null,{"$f":"IF(AJ142<>\"\",1,0)","v":0}]
[null,null,null,null,null,null,null,null,null,null,null,null,null,null,null,null,null,null,null,null,null,null,null,null,null,null,null,null,null,null,null,null,null,null,null,null,null,null,null,null,null,0]
[null,null,null,null,null,null,null,null,null,null,null,null,null,null,null,null,null,null,null,null,null,null,null,null,null,null,null,null,null,null,null,null,null,null,null,null,null,null,null,null,null,0]
[null,null,null,null,null,null,null,null,null,null,null,null,null,null,null,null,null,null,null,null,null,null,null,null,null,null,null,null,null,null,null,null,null,null,null,null,null,null,null,null,null,0]
[null,null,null,null,null,null,null,null,null,null,null,null,null,null,null,null,null,null,null,null,null,null,null,null,null,null,null,null,null,null,null,null,null,null,null,null,null,null,null,null,null,0]
[null,null,null,null,null,null,null,null,null,null,null,null,null,null,null,null,null,null,null,null,null,null,null,null,null,null,null,null,null,null,null,null,null,null,null,null,null,null,null,null,null,0]
[null,null,null,null,null,null,null,null,null,null,null,null,null,null,null,null,null,null,null,null,null,null,null,null,null,null,null,null,null,null,null,null,null,null,null,null,null,null,null,null,null,0]